bitfinex/quotes_ETHUSD_20260209
["timestamp","ask_amount","ask_price","bid_price","bid_amount"]
[1770603922789,0.1024,2075.3,2074.5,1.20509667]
[1770603922974,4.57262543,2075.4,2074.6,2.76195756]
[1770603923470,4.57262543,2075.4,2074.6,3.96696613]
[1770603925583,2.75888049,2075.3,2074.3,0.001]
[1770603927387,2.75888049,2075.3,2074.8,0.001]
[1770603927602,2.75888049,2075.3,2074.3,0.001]
[1770603927603,1.20470316,2075.2,2074.3,0.001]
[1770603927893,1.20670316,2075.2,2074.3,0.001]
[1770603928078,1.20670316,2075.2,2074.5,0.001]
[1770603928479,3.96558365,2075.2,2074.5,0.001]
[1770603929899,2.75888049,2075.1,2074.5,0.001]
[1770603930597,2.86128049,2075.0,2074.3,0.001]
[1770603930902,2.86128049,2075.0,2074.1,0.001]
[1770603931103,2.86128049,2075.0,2073.4,3.96769914]
[1770603931315,3.51,2074.9,2073.4,2.76195756]
[1770603931474,2.75888049,2074.6,2073.4,2.76195756]
[1770603931787,3.96399015,2074.5,2073.4,2.76195756]
[1770603932367,1.20510966,2074.5,2073.4,2.76195756]
[1770603932695,2.75888049,2074.4,2073.4,2.76195756]
[1770603932904,2.75888049,2074.4,2073.3,0.001]
[1770603933798,2.75888049,2074.4,2073.3,1.20680706]
[1770603934003,1.20522585,2074.3,2073.3,0.001]
[1770603934201,3.368,2074.2,2073.3,0.001]
[1770603934693,3.368,2074.2,2073.3,2.76295756]
[1770603934894,3.368,2074.2,2073.6,2.76195756]
[1770603935594,1.20488414,2074.9,2073.9,2.76195756]
[1770603935990,4.8194276,2075.0,2074.1,1.25117347]
[1770603936904,4.8194276,2075.0,2074.1,4.01313103]
[1770603937602,4.8194276,2075.0,2074.2,2.76195756]
[1770603938694,4.8194276,2075.0,2074.2,3.96720213]
[1770603939095,1.2047852,2075.1,2074.3,2.76195756]
[1770603939388,1.20674096,2075.2,2074.3,2.76195756]
[1770603940023,1.20674096,2075.2,2074.1,1.20531057]
[1770603940237,3.96562145,2075.2,2074.2,1.20527636]
[1770603940394,3.96562145,2075.2,2074.2,3.96723392]
[1770603940595,3.96562145,2075.2,2074.4,0.001]
[1770603942317,2.75888049,2074.9,2073.7,2.76195756]
[1770603942517,6.12688049,2074.8,2073.7,3.9675321]
[1770603942720,6.12688049,2074.8,2073.8,2.80781805]
[1770603942721,1.20499349,2074.7,2073.8,2.80781805]
[1770603942916,4.57297999,2074.8,2073.8,2.80781805]
[1770603943110,4.57297999,2074.8,2074.1,2.76195756]
[1770603944197,4.57294818,2074.8,2074.1,2.76195756]
[1770603944699,4.57294818,2074.8,2073.8,2.80781805]
[1770603944921,4.57294818,2074.8,2073.9,1.20545831]
[1770603945224,4.57294818,2074.8,2073.9,3.98460799]
[1770603946026,4.57294818,2074.8,2073.9,1.20545831]
[1770603946323,2.75888049,2075.1,2073.9,1.20545831]
[1770603946324,1.20479264,2075.1,2074.2,2.77914968]
[1770603947133,0.002,2075.2,2074.4,2.77914968]
[1770603947303,1.20670316,2075.2,2074.4,2.77914968]
[1770603950833,0.002,2075.2,2074.3,1.20522585]
[1770603951030,0.002,2075.2,2074.4,3.98430705]
[1770603951636,0.002,2075.2,2074.5,2.82501017]
[1770603951833,0.002,2075.4,2074.6,2.77914968]
[1770603952743,0.002,2075.4,2074.7,1.20499349]
[1770603952905,0.002,2075.4,2074.6,1.20500952]
[1770603953106,0.002,2075.0,2074.7,2.77914968]
[1770603953914,0.002,2075.4,2075.0,2.77914968]
[1770603954121,1.20438239,2075.8,2075.0,2.77914968]
[1770603954926,0.002,2075.9,2075.1,1.20476121]
[1770603955447,0.002,2075.9,2075.1,3.98391089]
[1770603955943,0.002,2075.9,2075.1,1.20476121]
[1770603958641,0.002,2075.9,2075.0,3.98396895]
[1770603960348,0.002,2075.9,2075.1,2.77914968]
[1770603960538,0.002,2076.3,2075.7,3.98352065]
[1770603961246,0.002,2076.3,2075.8,2.77914968]
[1770603962049,0.002,2076.3,2075.7,1.20441274]
[1770603962250,0.002,2076.3,2075.6,1.2044267]
[1770603962628,2.65571325,2076.3,2075.0,1.20478655]
[1770603962827,2.65371325,2076.1,2075.0,3.98393527]
[1770603963054,2.65371325,2076.1,2075.0,1.20480736]
[1770603963256,2.65371325,2076.1,2074.9,1.20483413]
[1770603963746,2.65371325,2076.1,2075.0,1.2048172]
[1770603963947,2.65371325,2076.1,2074.9,3.98399484]
[1770603964134,2.65371325,2076.1,2075.0,1.20481683]
[1770603964535,1.20423892,2076.0,2075.0,1.20481683]
[1770603964740,1.20423892,2076.0,2075.1,2.77914968]
[1770603965753,1.20423892,2076.0,2075.0,1.20481683]
[1770603966856,2.65371325,2076.0,2074.8,3.9840436]
[1770603967061,2.65371325,2076.0,2074.8,1.20493051]
[1770603967434,2.65371325,2076.0,2074.9,1.2048659]
[1770603967755,2.65371325,2076.0,2074.7,3.98411338]
[1770603968054,2.65371325,2076.0,2074.8,1.20492867]
[1770603968233,2.65371325,2076.0,2074.9,1.20487684]
[1770603968956,2.65371325,2076.0,2074.7,2.77914968]
[1770603969260,1.20429693,2075.9,2074.9,2.82501017]
[1770603969967,2.75611325,2075.8,2074.6,0.001]
[1770603970275,2.75611325,2075.4,2074.6,0.001]
[1770603970589,2.75611325,2075.0,2073.5,0.001]
[1770603970873,2.75611325,2074.5,2073.5,0.001]
[1770603971044,3.8589391,2074.3,2073.5,0.001]
[1770603971241,1.20522585,2074.3,2073.5,0.001]
[1770603974957,1.20510966,2074.5,2073.6,2.82501017]
[1770603975160,1.30733541,2074.8,2073.7,1.20557457]
[1770603975558,7.22662888,2074.9,2073.7,3.88881212]
[1770603975786,7.22662888,2074.9,2073.7,2.68323755]
[1770603976070,2.45945942,2074.8,2073.6,3.93469617]
[1770603976251,4.57291563,2074.9,2073.7,2.68323755]
[1770603976754,4.57291563,2074.9,2073.9,0.04586049]
[1770603976946,4.57291563,2074.9,2073.7,2.68323755]
[1770603977147,4.57291563,2074.9,2073.8,1.20551644]
[1770603977645,4.57291563,2074.9,2073.9,0.001]
[1770603978545,4.57291563,2074.9,2073.9,2.7162796]
[1770603979047,4.57291563,2074.9,2073.9,2.67041911]
[1770603979974,4.57291563,2074.9,2074.0,1.20540019]
[1770603981746,4.57291563,2074.9,2074.0,1.25126068]
[1770603981961,4.57291563,2074.9,2073.9,2.67041911]
[1770603982155,7.0169976,2074.9,2073.9,1.20645388]
[1770603983646,4.57291563,2074.9,2073.9,3.87587299]
[1770603984156,4.57291563,2074.9,2073.9,3.92173348]
[1770603987079,2.44408197,2074.8,2073.9,0.001]
[1770603988379,2.44408197,2074.6,2073.9,0.001]
[1770603988677,2.54648197,2074.5,2073.9,0.001]
[1770603989857,2.54648197,2074.5,2073.6,0.001]
[1770603990263,2.54648197,2074.3,2073.6,0.001]
[1770603990466,3.369,2074.2,2073.6,0.001]
[1770603990697,5.91548197,2074.2,2074.1,0.001]
[1770603990980,5.81308197,2074.2,2073.6,0.001]
[1770603991188,5.81308197,2074.2,2073.9,0.001]
[1770603991778,3.369,2074.2,2073.9,0.001]
[1770603992370,1.20534207,2074.1,2073.9,0.001]
[1770603994388,4.57431506,2074.2,2073.9,0.001]
[1770603994595,4.5742895,2074.2,2073.9,0.001]
[1770603995607,9.87219408,2076.0,2073.9,0.001]
[1770603995608,1.20703555,2074.7,2073.9,2.67041911]
[1770603996108,2.44408197,2074.6,2073.9,0.001]
[1770603996269,1.20703555,2074.7,2073.9,0.001]
[1770603996976,0.002,2074.7,2073.9,2.67041911]
[1770603998666,0.002,2074.7,2073.9,0.001]
[1770603998866,2.44608197,2074.7,2073.9,0.001]
[1770604000104,0.1044,2074.7,2073.9,2.67041911]
[1770604000305,0.1044,2074.7,2073.9,3.87587671]
[1770604000505,0.1044,2074.7,2073.9,0.001]
[1770604000712,1.20505157,2074.6,2073.9,0.001]
[1770604001021,3.64913354,2074.6,2073.9,0.001]
[1770604003522,1.20505157,2074.6,2073.9,0.001]
[1770604003824,0.002,2074.7,2073.9,2.7162796]
[1770604004135,1.20700179,2074.7,2073.9,2.67041911]
[1770604004593,1.20700179,2074.7,2074.1,0.001]
[1770604004788,0.002,2074.4,2074.1,0.001]
[1770604005719,3.371,2074.4,2073.9,0.001]
[1770604007590,3.371,2074.4,2073.9,2.3414279]
[1770604007995,4.57616934,2074.4,2073.9,2.3414279]
[1770604008392,4.57616934,2074.4,2073.9,0.001]
[1770604009019,4.576175,2074.4,2073.9,0.001]
[1770604009216,4.576175,2074.4,2073.9,2.3414279]
[1770604009598,3.371,2074.4,2073.9,3.54686587]
[1770604009801,3.371,2074.4,2073.9,3.54685857]
[1770604010023,4.57616827,2074.4,2073.9,2.3414279]
[1770604010508,4.57617178,2074.4,2073.9,2.3414279]
[1770604011227,3.371,2074.4,2073.9,3.54688291]
[1770604012332,4.57616928,2074.4,2073.9,2.3414279]
[1770604012528,4.57616928,2074.4,2073.9,0.001]
[1770604016137,0.002,2074.7,2074.3,2.3404279]
[1770604016361,0.002,2074.7,2074.0,2.3404279]
[1770604016510,1.20701167,2074.7,2074.0,2.3404279]
[1770604016853,1.20701167,2074.7,2073.9,0.001]
[1770604016999,0.5,2074.5,2073.9,0.001]
[1770604017198,0.5,2074.5,2074.1,0.001]
[1770604017424,0.002,2074.2,2074.1,0.0001001]
[1770604021434,0.002,2074.2,2073.9,0.001]
[1770604024033,1.20699508,2074.7,2074.0,2.3404279]
[1770604024814,1.20699617,2074.7,2074.0,2.3404279]
[1770604026439,0.002,2074.7,2074.1,3.54576997]
[1770604026942,0.5,2074.5,2074.2,2.3404279]
[1770604027314,0.5,2074.5,2074.1,1.20534207]
[1770604027513,0.5,2074.5,2074.1,3.54576997]
[1770604028138,0.5,2074.5,2074.0,1.20538696]
[1770604028438,0.5,2074.5,2073.9,7.16324797]
[1770604028636,0.5,2074.5,2074.0,2.3404279]
[1770604028842,0.5,2074.5,2074.0,2.38628839]
[1770604030114,0.5,2074.5,2074.1,2.3414279]
[1770604030311,0.002,2074.3,2074.2,1.20528396]
[1770604030730,0.002,2074.7,2074.3,2.3404279]
[1770604031245,0.002,2074.5,2074.3,2.3404279]
[1770604032341,0.002,2074.5,2074.1,0.001]
[1770604032546,0.002,2074.5,2074.1,1.20634207]
[1770604033514,0.002,2074.5,2074.1,0.001]
[1770604034244,0.002,2074.5,2074.1,0.00010035]
[1770604034919,2.56623624,2074.5,2074.1,0.00010035]
[1770604035146,0.002,2074.5,2074.1,0.00010035]
[1770604040126,0.002,2074.5,2073.9,0.001]
[1770604042452,0.002,2074.5,2073.9,2.49789504]
[1770604043041,0.002,2074.5,2073.9,3.70332107]
[1770604044055,0.002,2074.5,2074.2,0.001]
[1770604046142,0.002,2074.5,2074.2,0.00010043]
[1770604047166,0.5,2074.3,2074.2,0.00010043]
[1770604049364,4.01277654,2074.3,2073.9,0.001]
[1770604049953,1.70522585,2074.3,2073.9,0.001]
[1770604050152,0.5,2074.3,2073.9,0.001]
[1770604050341,0.5,2074.3,2073.9,2.54375553]
[1770604050665,1.70522795,2074.3,2073.9,0.001]
[1770604052851,2.30755069,2074.2,2073.5,0.001]
[1770604053038,2.30755069,2074.0,2073.3,0.001]
[1770604053745,1.20545831,2073.9,2073.3,0.001]
[1770604053958,3.369,2073.8,2073.3,0.001]
[1770604057087,1.20557457,2073.7,2073.5,0.001]
[1770604058886,1.20557457,2073.7,2073.5,0.00010062]
[1770604059380,3.513009,2073.9,2073.5,0.00010062]
[1770604060592,2.30755069,2073.8,2073.5,0.00010062]
[1770604060786,1.20545831,2073.9,2073.5,0.00010062]
[1770604062200,3.513009,2073.9,2073.3,0.001]
[1770604062367,2.30755069,2073.8,2073.3,0.001]
[1770604063264,1.20545831,2073.9,2073.3,0.001]
[1770604065589,3.60984479,2073.9,2073.3,0.001]
[1770604066589,2.40438648,2073.8,2072.8,0.001]
[1770604067001,2.40438648,2073.8,2072.8,1.20707883]
[1770604067178,1.20545831,2073.9,2073.0,3.51009367]
[1770604067492,3.60984479,2073.9,2072.9,3.5101827]
[1770604067686,3.60984479,2073.9,2073.0,2.30414422]
[1770604068395,1.20545831,2073.9,2073.0,2.30414422]
[1770604069070,3.60984479,2073.9,2073.0,2.30414422]
[1770604069590,3.60984479,2073.9,2073.5,0.001]
[1770604069805,0.002,2073.7,2073.0,3.5101158]
[1770604069981,0.002,2073.7,2073.3,0.001]
[1770604070490,3.37,2073.6,2073.3,0.001]
[1770604072292,4.57567845,2073.6,2073.3,0.001]
[1770604074010,0.002,2073.7,2073.3,2.30514422]
[1770604080814,1.44796575,2074.8,2073.6,2.30414422]
[1770604080815,1.20528396,2074.2,2073.6,2.30414422]
[1770604081012,2.40438648,2074.1,2073.4,2.30414422]
[1770604081311,2.40438648,2074.1,2073.3,0.001]
[1770604082212,0.002,2074.0,2073.3,0.001]
[1770604082415,3.37,2073.9,2073.3,2.30514422]
[1770604082817,1.20551644,2073.8,2073.3,2.30514422]
[1770604083018,2.40438648,2073.7,2073.0,0.001]
[1770604083333,2.40438648,2073.1,2071.4,2.30414422]
[1770604083614,2.40438648,2072.8,2071.7,1.20673391]
[1770604083983,2.40438648,2072.8,2071.7,1.20673541]
[1770604084187,5.77438648,2073.0,2071.8,2.35000471]
[1770604084388,5.77438648,2073.0,2072.0,1.20652186]
[1770604084585,3.37,2073.0,2072.1,3.55649955]
[1770604084810,1.20603984,2072.9,2072.1,3.55649955]
[1770604085016,1.20603984,2072.9,2072.1,1.20649484]
[1770604085588,1.20603984,2072.9,2072.0,3.51067205]
[1770604085788,3.61042632,2072.9,2072.0,1.20655147]
[1770604085989,3.61042632,2072.9,2072.1,1.20649365]
[1770604086202,1.20603984,2072.9,2072.1,1.20649365]
[1770604086515,1.20603984,2072.9,2072.0,3.51065053]
[1770604086819,1.20603984,2072.9,2072.1,1.20650451]
[1770604088715,1.20603984,2072.9,2072.1,1.252365]
[1770604089119,3.61042632,2072.9,2072.0,3.51066618]
[1770604089418,3.61042632,2072.9,2072.1,1.2064987]
[1770604089617,3.61042632,2072.9,2072.0,1.20655688]
[1770604089821,3.61042632,2072.9,2072.0,1.20655891]
[1770604089997,3.61042632,2072.9,2071.9,1.20657788]
[1770604090193,3.61042632,2072.9,2071.9,1.20657238]
[1770604090388,3.61042632,2072.9,2072.0,1.20655607]
[1770604091022,3.61042632,2072.9,2071.9,3.51076616]
[1770604092622,2.40438648,2072.8,2071.9,3.51076616]
[1770604093199,1.20613459,2072.8,2072.0,2.30414422]
[1770604094019,2.40438648,2072.7,2071.7,1.20670858]
[1770604094318,2.40438648,2072.7,2071.9,1.20661675]
[1770604094701,2.40438648,2072.7,2071.8,1.20663531]
[1770604095109,2.40438648,2072.7,2072.1,0.001]
[1770604095305,3.61257934,2072.7,2072.1,0.001]
[1770604097914,2.44711158,2072.6,2072.1,0.001]
[1770604098806,1.20819286,2072.7,2072.1,0.001]
[1770604099525,0.002,2072.7,2072.3,3.53410588]
[1770604099834,0.002,2072.7,2072.2,1.20640594]
[1770604100528,0.002,2072.7,2072.3,1.2063876]
[1770604101213,0.002,2072.7,2072.2,1.20640432]
[1770604101925,0.002,2072.7,2072.1,1.20750324]
[1770604102229,0.002,2072.7,2072.1,1.20749851]
[1770604103331,0.002,2072.7,2072.1,0.001]
[1770604103733,0.002,2072.7,2072.1,1.20750245]
[1770604104031,0.002,2072.7,2072.1,0.001]
[1770604105311,0.002,2072.7,2072.2,2.3277173]
[1770604105935,0.002,2072.7,2072.2,3.53413233]
[1770604107017,0.002,2072.7,2072.2,1.20641503]
[1770604107936,0.002,2072.7,2072.3,0.001]
[1770604108116,0.002,2072.5,2072.3,0.001]
[1770604109008,0.002,2072.7,2072.3,2.3287173]
[1770604109814,0.002,2072.9,2072.3,2.3287173]
[1770604110337,0.002,2072.9,2072.4,1.20633082]
[1770604111243,0.002,2072.9,2072.4,3.53404812]
[1770604111844,0.002,2072.9,2072.5,2.3277173]
[1770604112042,0.002,2073.6,2073.1,2.3277173]
[1770604112249,0.002,2073.6,2072.9,1.20603984]
[1770604112422,0.002,2073.6,2073.0,2.37357779]
[1770604113233,0.002,2073.6,2073.0,2.3277173]
[1770604114346,0.002,2073.6,2073.1,3.53364079]
[1770604115846,0.002,2073.6,2073.1,1.20592349]
[1770604117551,0.002,2073.6,2073.0,1.20594262]
[1770604118951,0.5,2073.4,2072.8,1.20609803]
[1770604119447,0.002,2073.6,2072.8,1.20609803]
[1770604120449,0.002,2073.6,2073.1,2.3287173]
[1770604120640,0.002,2073.4,2073.1,2.3287173]
[1770604120841,0.002,2073.4,2073.1,0.001]
[1770604122766,0.002,2073.4,2073.1,2.3287173]
[1770604122973,0.002,2073.4,2073.2,1.20586532]
[1770604123266,0.002,2073.6,2073.2,3.57944311]
[1770604123566,0.002,2073.6,2073.3,2.3277173]
[1770604124340,0.002,2073.8,2073.3,2.3277173]
[1770604124959,0.002,2073.8,2073.5,2.23507284]
[1770604125165,0.002,2074.0,2073.6,2.28093333]
[1770604125474,0.002,2074.0,2073.6,2.23507284]
[1770604127173,0.002,2074.0,2073.7,1.20557457]
[1770604127772,10.44729094,2074.7,2074.2,0.04586049]
[1770604127773,0.002,2074.7,2074.2,0.04586049]
[1770604127962,0.002,2074.7,2074.0,2.23507284]
[1770604129177,0.002,2074.7,2074.1,1.20534207]
[1770604131152,2.25429323,2074.4,2073.5,1.20569086]
[1770604131757,1.70510966,2074.5,2073.5,3.4407637]
[1770604131957,1.70510966,2074.5,2073.6,2.28093333]
[1770604132856,0.502,2074.5,2073.6,2.28093333]
[1770604133786,1.70711315,2074.5,2073.7,1.20557457]
[1770604134166,3.96140638,2074.5,2073.7,1.20557457]
[1770604136802,2.25429323,2074.4,2073.7,1.20557457]
[1770604137178,2.25429323,2074.4,2073.4,2.23507284]
[1770604137484,2.25429323,2074.4,2073.5,1.20564148]
[1770604138187,2.25429323,2074.4,2073.5,1.20568702]
[1770604138390,2.25429323,2074.2,2073.3,4.82309867]
[1770604140763,1.20534207,2074.1,2073.3,4.82309867]
[1770604140961,0.002,2074.7,2074.1,0.04586049]
[1770604141391,1.20700572,2074.7,2073.9,2.23507284]
[1770604141580,3.46129895,2074.7,2073.8,0.04586049]
[1770604142093,2.25629323,2074.7,2073.8,2.28093333]
[1770604142484,3.46128926,2074.7,2073.8,2.28093333]
[1770604142683,2.25629323,2074.7,2073.8,2.28093333]
[1770604142884,3.4612884,2074.7,2073.9,1.20545831]
[1770604145270,3.4612884,2074.7,2074.3,0.001]
[1770604145575,0.002,2074.5,2074.3,0.001]
[1770604150768,0.002,2074.7,2074.3,2.23607284]
[1770604150974,0.002,2074.7,2074.3,0.001]
[1770604156905,2.45068676,2074.7,2074.3,0.001]
[1770604157696,3.6556839,2074.7,2074.3,0.001]
[1770604157904,0.002,2074.5,2074.1,0.001]
[1770604159304,2.45068676,2074.5,2074.0,0.001]
[1770604159614,3.65584105,2074.5,2074.0,0.001]
[1770604160109,2.44868676,2074.4,2074.0,0.001]
[1770604162585,3.65386364,2074.4,2074.0,0.001]
[1770604162786,2.44868676,2074.3,2073.5,1.20564969]
[1770604163083,2.44868676,2074.3,2073.3,2.35009554]
[1770604163084,2.44868676,2074.3,2073.3,1.2057625]
[1770604163282,2.44868676,2074.3,2073.5,1.20568948]
[1770604163582,2.44868676,2074.3,2073.3,4.82313551]
[1770604163782,2.44868676,2074.3,2073.5,1.20569012]
[1770604165009,1.20528396,2074.2,2073.3,1.20580716]
[1770604165183,3.65397072,2074.2,2073.3,1.20580716]
[1770604166003,3.65397072,2074.2,2073.3,3.5559027]
[1770604166206,2.44868676,2074.4,2073.5,2.39595603]
[1770604166508,0.002,2074.5,2073.8,2.39595603]
[1770604166814,0.002,2074.5,2073.8,0.04586049]
[1770604167110,0.002,2074.5,2073.8,2.39595603]
[1770604167410,0.002,2074.5,2073.9,1.20545831]
[1770604170587,0.002,2074.5,2074.1,0.001]
[1770604171031,0.002,2074.3,2074.1,0.001]
[1770604183309,0.002,2075.1,2074.5,2.39595603]
[1770604183502,0.002,2075.1,2074.6,0.04586049]
[1770604183912,0.002,2075.1,2074.6,1.20505051]
[1770604184113,2.45068676,2075.1,2074.6,1.20505051]
[1770604186216,0.002,2075.1,2074.6,1.20505051]
[1770604187435,3.40121911,2075.1,2074.5,1.20507002]
[1770604188236,2.19445586,2075.0,2074.3,1.20522585]
[1770604190225,2.19445586,2074.8,2074.1,0.001]
[1770604193343,2.19445586,2074.7,2074.1,0.001]
[1770604194022,8.37593744,2074.6,2074.1,0.001]
[1770604194225,2.19445586,2074.5,2074.1,0.001]
[1770604194746,1.20516533,2074.5,2074.3,0.001]
[1770604194922,2.19445586,2074.4,2074.1,0.001]
[1770604198333,2.19445586,2074.3,2074.1,0.001]
[1770604198523,2.19445586,2074.3,2074.0,0.001]
[1770604199522,3.39973982,2074.2,2074.0,0.001]
[1770604199739,2.19445586,2074.2,2074.0,0.001]
[1770604200331,1.20526852,2074.3,2074.0,0.001]
[1770604200545,1.20503468,2074.7,2074.0,2.31833773]
[1770604200848,2.19445586,2074.6,2074.0,0.001]
[1770604201059,1.20503468,2074.7,2074.0,2.31833773]
[1770604201548,2.19445586,2074.7,2074.0,0.001]
[1770604203155,2.19445586,2074.7,2073.4,1.20570168]
[1770604203449,2.19445586,2074.7,2073.2,1.20683882]
[1770604203450,3.39962361,2074.4,2073.2,1.20683882]
[1770604203649,2.19445586,2074.2,2073.2,1.20683882]
[1770604204230,3.369,2074.3,2073.3,2.31733773]
[1770604204535,2.19445586,2074.2,2073.2,1.25269931]
[1770604205145,2.19445586,2074.2,2073.2,0.001]
[1770604205525,2.19445586,2074.0,2073.2,0.001]
[1770604206753,1.20534207,2074.1,2073.3,2.36319822]
[1770604206954,1.20534207,2074.1,2073.4,0.001]
[1770604207448,0.002,2074.8,2073.9,0.04586049]
[1770604207643,2.19645586,2074.8,2073.8,2.31733773]
[1770604208056,2.19645586,2074.8,2073.9,0.04586049]
[1770604209657,2.19645586,2074.8,2074.0,1.20540019]
[1770604209658,1.20499349,2074.7,2074.0,1.20540019]
[1770604210843,0.002,2074.8,2074.1,2.31733773]
[1770604211044,0.002,2074.8,2074.2,2.36319822]
[1770604212040,0.002,2074.8,2074.3,1.20522585]
[1770604214531,0.002,2074.8,2074.4,2.31733773]
[1770604214730,0.002,2074.8,2074.5,0.04586049]
[1770604215162,0.002,2074.8,2074.4,2.31733773]
[1770604215640,0.002,2075.0,2074.5,2.25686465]
[1770604217455,0.002,2075.0,2074.6,1.20505157]
[1770604217663,0.002,2075.2,2074.6,1.20505157]
[1770604217664,0.002,2075.2,2074.8,2.43158072]
[1770604217831,0.002,2075.2,2074.6,3.5907718]
[1770604218456,0.002,2074.8,2074.6,3.5907718]
[1770604218656,0.002,2075.2,2074.6,3.5907718]
[1770604218854,0.002,2075.0,2074.6,3.5907718]
[1770604220628,0.002,2075.0,2074.6,1.20505157]
[1770604221652,0.002,2075.2,2074.8,2.43158072]
[1770604221841,0.002,2075.4,2074.8,2.43158072]
[1770604222836,0.002,2076.1,2075.3,2.38572023]
[1770604223066,0.002,2076.3,2075.6,10.04457309]
[1770604223237,0.002,2076.3,2075.5,3.368]
[1770604223436,0.002,2076.3,2075.7,0.04586049]
[1770604223850,0.002,2076.3,2075.7,2.43158072]
[1770604224744,0.002,2076.9,2076.1,1.20418091]
[1770604225659,0.002,2076.9,2076.3,0.04586049]
[1770604227153,0.002,2076.9,2076.3,1.24987205]
[1770604227351,2.3388835,2077.6,2076.8,0.04586049]
[1770604227557,3.54214806,2077.7,2076.6,2.43158072]
[1770604227868,2.3388835,2077.6,2076.6,2.43158072]
[1770604228383,1.20325721,2077.7,2076.9,0.04586049]
[1770604228576,1.20323724,2077.8,2076.9,0.04586049]
[1770604228882,2.3388835,2078.2,2077.2,0.04586049]
[1770604229243,1.20302199,2078.1,2077.3,1.20348529]
[1770604229640,2.3388835,2078.0,2077.2,1.2493661]
[1770604229846,2.3388835,2078.0,2076.7,1.20379941]
[1770604230371,2.3388835,2077.8,2076.7,1.20379941]
[1770604230746,2.3408835,2077.4,2076.2,1.20407934]
[1770604230946,2.3408835,2077.4,2076.3,1.24988495]
[1770604231245,3.54435072,2077.4,2076.6,0.04586049]
[1770604231447,0.002,2077.6,2077.2,0.04586049]
[1770604231656,1.20302958,2078.1,2077.2,0.04586049]
[1770604232064,3.54191308,2078.1,2077.2,0.04586049]
[1770604232245,2.3388835,2078.0,2076.9,2.43158072]
[1770604232649,2.3388835,2078.0,2076.9,0.04586049]
[1770604233368,2.3388835,2077.8,2076.7,1.203833]
[1770604233969,2.3388835,2077.8,2076.9,0.04586049]
[1770604234276,1.20313778,2077.9,2076.9,2.43158072]
[1770604234669,1.20313778,2077.9,2077.2,0.04586049]
[1770604235259,4.81233462,2078.0,2077.2,1.24936917]
[1770604235468,1.20307988,2078.0,2077.2,1.24936917]
[1770604237485,2.3388835,2077.9,2077.0,1.20361563]
[1770604237689,1.20307988,2078.0,2077.2,1.24940349]
[1770604237876,1.20306104,2078.1,2077.2,1.24940349]
[1770604239011,2.3388835,2078.0,2076.9,4.81468036]
[1770604239165,2.3388835,2078.0,2077.1,1.20357013]
[1770604239593,2.3388835,2078.3,2077.1,2.43158072]
[1770604239769,2.3388835,2078.3,2077.1,0.04586049]
[1770604241695,2.3388835,2078.1,2077.0,1.20362193]
[1770604241872,2.3388835,2078.1,2076.9,1.20368668]
[1770604242494,2.3388835,2078.1,2076.8,1.20374095]
[1770604242861,2.3388835,2078.1,2076.8,4.81509911]
[1770604243063,2.3388835,2078.1,2077.0,1.20365894]
[1770604243572,3.54196338,2078.0,2077.0,1.20365894]
[1770604244492,3.54196338,2078.0,2077.0,1.20465894]
[1770604244795,0.002,2077.9,2077.0,1.20465894]
[1770604245102,0.002,2077.9,2077.2,2.22464103]
[1770604245399,0.002,2077.9,2077.3,0.04586049]
[1770604245901,0.002,2077.9,2077.0,0.001]
[1770604246121,2.25933438,2077.9,2077.0,1.20461986]
[1770604246894,2.25933438,2077.9,2077.0,0.001]
[1770604247675,3.46053006,2077.8,2077.0,0.001]
[1770604247999,2.25733438,2077.7,2077.0,0.001]
[1770604249202,1.20319568,2077.8,2077.0,0.001]
[1770604249404,1.20504315,2078.1,2077.0,0.04686049]
[1770604249611,3.46237753,2078.1,2077.3,0.04586049]
[1770604249798,3.46237753,2078.1,2077.3,1.24933067]
[1770604251208,1.20504315,2078.1,2077.3,1.24933067]
[1770604252322,0.002,2078.1,2077.3,1.24933067]
[1770604253803,2.25933438,2078.1,2077.3,1.20347018]
[1770604254429,1.20507604,2078.1,2077.2,4.81414105]
[1770604254794,1.20502813,2078.1,2077.3,2.22464103]
[1770604255011,0.002,2078.1,2077.3,2.22464103]
[1770604256304,1.20502202,2078.1,2077.3,2.22464103]
[1770604256827,0.002,2078.1,2077.4,1.20342736]
[1770604257023,0.002,2078.1,2077.4,1.20442736]
[1770604257226,0.002,2077.9,2077.4,1.20442736]
[1770604260925,0.002,2078.5,2077.7,2.17878054]
[1770604261247,0.0714,2079.0,2078.3,0.04586049]
[1770604261460,0.003,2079.3,2078.3,0.04586049]
[1770604261461,1.20537877,2079.3,2078.3,2.22464103]
[1770604261614,0.003,2079.3,2078.4,1.20284834]
[1770604261817,2.26033438,2079.3,2078.2,1.20293755]
[1770604262015,2.26033438,2079.3,2078.1,1.20297983]
[1770604262244,2.26033438,2079.3,2078.1,1.24885656]
[1770604262448,2.26033438,2079.3,2078.3,3.38166222]
[1770604262634,2.26033438,2079.3,2078.4,0.04586049]
[1770604262836,0.003,2079.3,2078.7,2.22464103]
[1770604263018,0.003,2079.3,2078.7,0.04586049]
[1770604263220,0.003,2079.3,2078.4,2.22464103]
[1770604263420,0.003,2079.3,2078.4,0.04586049]
[1770604263617,2.26033438,2079.3,2078.1,2.22464103]
[1770604263815,2.26033438,2079.3,2077.8,3.38195967]
[1770604264022,2.26033438,2079.3,2077.9,2.22464103]
[1770604264240,2.26033438,2079.3,2078.1,1.2029751]
[1770604264443,2.26033438,2079.3,2077.9,1.20310924]
[1770604264632,2.26033438,2079.3,2077.6,5.58764103]
[1770604264844,2.26033438,2079.3,2077.7,1.20322884]
[1770604265140,2.25733438,2079.1,2077.6,5.58764103]
[1770604265336,2.25733438,2079.1,2077.6,3.40886049]
[1770604265642,2.25733438,2078.9,2077.6,3.363]
[1770604266226,2.25733438,2078.7,2077.4,1.20442031]
[1770604266428,2.25733438,2078.7,2077.4,1.20438297]
[1770604267757,1.2027326,2078.6,2077.6,0.04586049]
[1770604268861,2.25733438,2078.5,2077.6,0.04586049]
[1770604269722,2.25733438,2078.5,2077.5,0.001]